Cogmind - Beta 12 @@@ ROGUE MODE // 2023.03.22 @ 19:12:02 Player: MrProgressor Result: Destroyed by as-65695 with Assembled Heavy Rifle Performance ------------- Evolutions (0) 0 Regions Visited (2) 400 Robots Destroyed (18) 90 Value Destroyed (452) 452 Prototype IDs (0) 0 Alien Tech Used (0) 0 Bonus (0) 0 TOTAL SCORE: 942 Bonus ------- None Cogmind --------- Core Integrity 0/250 Matter 300/300 Energy 100/100 System Corruption 0% Temperature Cool (0) Movement Rolling (160) Ox4 Location -10/Mines Parts ------- > --- POWER (1) -------- (None) > --- PROPULSION (2) --- Compact Wheel Compact Wheel > --- UTILITY (2) ------ Cargo Storage Unit > --- WEAPON (2) ------- (None) > --- INVENTORY (30) --- Ion Engine Light Nuclear Core Light Treads Light Treads Light Treads Flight Unit Flight Unit Improved Heat Sink Small Storage Unit Large Storage Unit Large Storage Unit High-capacity Storage Unit Huge Storage Unit Small Matter Pod (12) High-capacity Matter Pod (0) Seismic Detector ECM Suite Propulsion Shielding EM Pulse Gun Small Laser Beam Cannon Beam Cannon Assault Rifle Datajack Datajack Mining Laser Mining Laser Mining Laser Mining Claw Mining Claw Peak State ------------ > --- POWER ------------ Ion Engine > --- PROPULSION ------- Compact Wheel Compact Wheel > --- UTILITY ---------- Cargo Storage Unit > --- WEAPON ----------- EM Pulse Gun Mining Laser > --- INVENTORY -------- Ion Engine Light Nuclear Core Light Treads Light Treads Light Treads Flight Unit Flight Unit Improved Heat Sink Small Storage Unit Large Storage Unit Large Storage Unit High-capacity Storage Unit Small Matter Pod Propulsion Shielding EM Pulse Gun Small Laser Beam Cannon Beam Cannon Assault Rifle Datajack Datajack Mining Laser Mining Laser Mining Laser Mining Claw Mining Claw [Rating: 10] Favorites ----------- Power Ion Engine Engine Ion Engine Propulsion Light Treads Treads Light Treads Leg Aluminum Leg Wheel Compact Wheel Utility Small Storage Unit Device Structural Scanner Storage Small Storage Unit Processor Signal Interpreter Protection Weapon Shielding Weapon Mining Claw Energy Gun EM Pulse Gun Ballistic Gun Light Assault Rifle Special Weapon Mining Laser Slashing Weapon Mining Claw Special Melee Weapon Datajack Build | -11 -10 -10 ------- Run | Jun Mat Min Slots Evolved . | . . . Power . | . . . Propulsion . | . . . Utility . | . . . Weapon . | . . . Parts Attached 21 | . 21 . Power 2 | . 2 . Engine 2 | . 2 . Core . | . . . Reactor . | . . . Propulsion 6 | . 6 . Treads 4 | . 4 . Leg . | . . . Wheel 2 | . 2 . Hover . | . . . Flight . | . . . Utility 6 | . 6 . Device 2 | . 2 . Storage 2 | . 2 . Processor 1 | . 1 . Hackware . | . . . Protection 1 | . 1 . Artifact . | . . . Weapon 7 | . 7 . Energy Gun 1 | . 1 . Energy Cannon . | . . . Ballistic Gun . | . . . Ballistic Cannon . | . . . Launcher . | . . . Special Weapon 1 | . 1 . Impact Weapon . | . . . Slashing Weapon 2 | . 2 . Piercing Weapon . | . . . Special Melee Weapon 3 | . 3 . Unidentified Prototypes . | . . . Parts Lost 7 | . 4 3 Power 1 | . . 1 Propulsion 1 | . 1 . Utility . | . . . Weapon 5 | . 3 2 Highest Loss Streak 3 | . 2 3 To Critical Strikes . | . . . Average Slot Usage (%) 94 | . 95 80 Engine 13 | . 14 12 Treads 16 | . 18 . Leg 4 | . 4 . Wheel 7 | . 5 28 Device 6 | . 7 . Storage 14 | . 14 14 Processor 3 | . 3 . Energy Gun 5 | . 4 12 Special Weapon 2 | . . 12 Slashing Weapon 11 | . 12 . Special Melee Weapon 7 | . 8 . Naked Turns . | . . . Heaviest Build 149 | 12 149 148 Greatest Support 40 | 20 40 32 Greatest Overweight (x) 4 | . 4 4 Average Overweight (x) 1 | . . 4 Largest Inventory Capacity 30 | . 30 30 Average Capacity 13 | . 12 30 Most Carried 30 | . 22 30 Average Carried 10 | . 9 27 Final Capacity 30 | 8 30 30 Final Carried 30 | 6 22 30 Class Distribution -------------------- 73% | Mutant 26% | Hauler-Mutant Dominant Class ---------------- Mutant | -10/Materials Hauler-Mutant | -10/Mines Resources | -11 -10 -10 ----------- Run | Jun Mat Min Matter Collected 407 | 200 170 37 Remotely . | . . . Salvage Created 810 | . 810 . Parts 42 | . 42 . Haulers Intercepted 1 | . 1 . Recyclers Shooed 2 | . 2 . Parts Field Recycled . | . . . Retrieved Matter . | . . . Parts Self-Destructed . | . . . Prevented . | . . . Kills | -11 -10 -10 ------- Run | Jun Mat Min Combat Hostiles Destroyed 10 | . 10 . Melee 10 | . 10 . Classes Destroyed 5 | . 5 . Builder 1 | . 1 . Hauler 1 | . 1 . Recycler 3 | . 3 . Watcher 3 | . 3 . Grunt 10 | . 10 . Best Kill Streak 3 | . 3 . Combat Bots Only 3 | . 3 . Max Kills in Single Turn 1 | . 1 . Gunslinging . | . . . Exploded . | . . . Melee 1 | . 1 . Uniques/NPCs Destroyed . | . . . Combat | -11 -10 -10 -------- Run | Jun Mat Min Damage Taken 1064 | . 723 341 Core 267 | . 145 122 Absorbed by Shields . | . . . Core Remaining (%) 100 | 100 . . Volleys Fired 11 | . 10 1 Largest 2 | . 2 1 Hottest 140 | . 140 100 Shots Fired 12 | . 11 1 Gun 3 | . 3 . Cannon . | . . . Launcher . | . . . Special 9 | . 8 1 Kinetic . | . . . Thermal 9 | . 8 1 Explosive . | . . . Electromagnetic 3 | . 3 . Robot Hit Streak 1 | . 1 . Robot Miss Streak 2 | . 1 2 Penetration Max . | . . . Secondary Targets . | . . . Shots Hit Robots 58 | . 58 . Core Hits 17 | . 17 . Critical Kills . | . . . Critical Parts Destroyed . | . . . Critical Strikes . | . . . Melee Attacks 82 | . 82 . Impact . | . . . Slashing 71 | . 71 . Piercing . | . . . Sneak Attacks 19 | . 19 . Combat Hostiles . | . . . Follow-up Attacks . | . . . Damage Inflicted 1350 | . 1350 . Guns 33 | . 33 . Cannons . | . . . Explosions . | . . . Melee 1317 | . 1317 . Ramming . | . . . Kinetic . | . . . Thermal . | . . . Explosive . | . . . Electromagnetic 33 | . 33 . Impact . | . . . Slashing 1317 | . 1317 . Piercing . | . . . Highest Corruption . | . . . Average Corruption . | . . . Corruption Purged . | . . . Corruption Blocked . | . . . Overload Shots . | . . . Overflow Damage 96 | . 96 . Projectiles . | . . . Explosions . | . . . Melee 96 | . 96 . Knockbacks . | . . . Impact . | . . . Kinetic . | . . . Secondary . | . . . Self-Inflicted Damage . | . . . Shots . | . . . Rammed . | . . . Targets Rammed . | . . . Kicked . | . . . Crushed . | . . . Highest Temperature 40 | . 40 . Average Temperature 21 | . 21 . Received Heat Transfer 426 | . 426 . Siege Activations . | . . . Robots Corrupted . | . . . Combat Hostiles . | . . . Parts Fried . | . . . Impact Corruptions . | . . . Robots Melted . | . . . Combat Hostiles . | . . . Parts Melted . | . . . Heat Transferred . | . . . Parts Sabotaged . | . . . Parts Stolen . | . . . Parts Stripped . | . . . Power Chain Reactions . | . . . Missiles Intercepted . | . . . Alert | -11 -10 -10 ------- Run | Jun Mat Min Peak Influence 200 | . 200 34 Initial 34 | . . 34 Average 83 | . 89 31 Maximum Alert Level 1 | . 1 . Low Security (%) 98 | . 98 100 Level 1 1 | . 1 . Level 2 . | . . . Level 3 . | . . . Level 4 . | . . . Level 5 . | . . . High Security . | . . . Max Security . | . . . Squads Dispatched 3 | . 3 . Investigation 1 | . 1 . Extermination . | . . . Reinforcement 2 | . 2 . Assault . | . . . Garrison . | . . . Intercept . | . . . Searches Triggered . | . . . Construction Impeded . | . . . Haulers Reinforced . | . . . Active Scanning Responses . | . . . Cargo Convoy Interrupts . | . . . Stealth | -11 -10 -10 --------- Run | Jun Mat Min Distress Signals 2 | . 2 . Communications Jammed . | . . . Distress Signals . | . . . Times Spotted 42 | . 26 16 Peak Tracking Total 11 | . 5 11 Tactical Retreats 2 | . 2 . Traps | -11 -10 -10 ------- Run | Jun Mat Min Traps Triggered 1 | . 1 . Indirectly . | . . . Trap Hack Attempts . | . . . Triggered . | . . . Disarmed . | . . . Reprogrammed . | . . . Reused . | . . . Traps Extracted . | . . . Installed . | . . . Triggered . | . . . Machines | -11 -10 -10 ---------- Run | Jun Mat Min Machines Disabled . | . . . Max in Single Turn . | . . . Machines Repaired . | . . . Machines Sabotaged . | . . . Overloaded Fab Kills . | . . . Hacking | -11 -10 -10 --------- Run | Jun Mat Min Machines Accessed 7 | . 7 . Terminals 6 | . 6 . Fabricators . | . . . Repair Stations . | . . . Recycling Units 1 | . 1 . Scanalyzers . | . . . Garrison Access . | . . . Total Hacks 25 | . 25 . Successful 10 | . 10 . Failed 15 | . 15 . Catastrophic 2 | . 2 . Database Lockouts . | . . . Manual 17 | . 17 . Terminals 22 | . 22 . Fabricators . | . . . Repair Stations . | . . . Recycling Units 3 | . 3 . Scanalyzers . | . . . Garrison Access . | . . . Terminal Hacks 6 | . 6 . Part Schematic 2 | . 2 . Robot Analysis 1 | . 1 . Branch Access Points 1 | . 1 . Locate Traps 1 | . 1 . Registered Components 1 | . 1 . Fabricator Hacks . | . . . Repair Station Hacks . | . . . Recycling Unit Hacks 1 | . 1 . Report Inventory 1 | . 1 . Scanalyzer . | . . . Garrison Access Hacks . | . . . Unauthorized Hacks 3 | . 3 . Terminals 2 | . 2 . Botnet 2 | . 2 . Fabricators . | . . . Repair Stations . | . . . Recycling Units 1 | . 1 . Reject 1 | . 1 . Scanalyzers . | . . . Garrison Access . | . . . Data Cores Recovered . | . . . Used . | . . . Hacking Detections 7 | . 7 . Full Trace Events 1 | . 1 . Feedback Events . | . . . Feedback Blocked . | . . . Robot Schematics Acquired . | . . . Robots Built . | . . . Authchips . | . . . Time . | . . . Total Robot Build Rating . | . . . Part Schematics Acquired 2 | . 2 . Parts Built . | . . . Authchips . | . . . Time . | . . . Total Part Build Rating . | . . . Parts Repaired . | . . . Time . | . . . Parts Recycled . | . . . Recycled Matter . | . . . Retrieved Matter . | . . . Retrieved Components . | . . . Parts Scanalyzed . | . . . Part Schematics Acquired . | . . . Parts Damaged . | . . . Bothacking | -11 -10 -10 ------------ Run | Jun Mat Min Used RIF Installer . | . . . Robots Hacked 7 | . 7 . Non-combat 6 | . 6 . Combat 1 | . 1 . Robot Hacks Applied 9 | . 9 . parse_system 6 | . 6 . no_distress 3 | . 3 . Relay Couplers Released . | . . . Fabnet Peak Effective % . | . . . Robots Rewired . | . . . Allies Hacked . | . . . Hacks Repelled . | . . . Allies | -11 -10 -10 -------- Run | Jun Mat Min Total Allies . | . . . Largest Group . | . . . Highest-Rated Group . | . . . Highest-Rated Ally . | . . . Total Orders . | . . . Ally Attacks . | . . . Total Damage . | . . . Kills . | . . . Allies Corrupted . | . . . Allies Melted . | . . . Intel | -11 -10 -10 ------- Run | Jun Mat Min Robot Analysis Total 1 | . 1 . Derelict Logs Recovered . | . . . Drone Launches . | . . . Drone Recoveries . | . . . Exploration | -11 -10 -10 ------------- Run | Jun Mat Min Turns Passed 2030 | . 1833 197 Spaces Moved 980 | 1 863 116 Core . | . . . Treads 537 | . 537 . Legs 156 | 1 155 . Wheels 287 | . 171 116 Hover . | . . . Flight . | . . . Fastest Speed 120 | 120 120 160 Average Speed 153 | 120 152 160 Slowest Speed 160 | 120 160 160 Overloaded Moves . | . . . Propulsion Burnouts . | . . . Robots Hopped . | . . . Cave-ins Triggered . | . . . Exploration Rate (%) 43 | 2 94 33 Regions Visited 2 Branch Regions 1 Pre-discovered Areas . | . . . Known Exits Taken 1 | . 1 . Unknown Exits Taken 1 | 1 . . Scrap Searched 1 | . . 1 Spaces Dug 16 | . 16 . Terrain Destroyed 17 | . 17 . Melee 9 | . 9 . Projectile 8 | . 8 . AOE . | . . . Terrain Rammed . | . . . Walls Destroyed . | . . . Machines Disabled . | . . . Actions | -11 -10 -10 --------- Run | Jun Mat Min Total 1329 | . 1204 125 Wait 189 | . 189 . Move 978 | . 862 116 Hop . | . . . Pick Up 33 | . 25 8 Fast Attach 9 | . 9 . Attach 4 | . 4 . Detach . | . . . Swap 8 | . 8 . Drop 15 | . 15 . Fire 11 | . 10 1 Melee 82 | . 82 . Ram . | . . . Kick . | . . . Crush . | . . . Escape Stasis . | . . . Rewire . | . . . Trap . | . . . Miscellaneous . | . . . Route ------- -11/Junkyard -10/Materials (discovered 4 exits: *Mat x3 / *Min) -10/Mines (discovered 2 exits: *Mat x2) History --------- Turn | Location | Event 1 | -11/Junkyard | Discovered new exit (range 0) 1 | -11/Junkyard | Entered Materials 311 | -10/Materials | Build established: Mutant 456 | -10/Materials | Discovered new exit (range 7) 957 | -10/Materials | Discovered new exit (range 13) 1003 | -10/Materials | Identified exit to Materials 1122 | -10/Materials | Core integrity fell below 50% 1528 | -10/Materials | Identified exit to Mines 1620 | -10/Materials | Discovered exit to Materials (range 4) 1805 | -10/Materials | Build established: Hauler-Mutant 1834 | -10/Materials | Entered Mines 1898 | -10/Mines | Discovered exit to Materials (range 6) 1956 | -10/Mines | Discovered exit to Materials (range 8) 1995 | -10/Mines | Assembled infested the area 2000 | -10/Mines | Assisted by a Guerilla fighting off Assembled 2026 | -10/Mines | Core integrity fell below 20% 2031 | -10/Mines | Destroyed by as-65695 with Assembled Heavy Rifle Last Messages --------------- way!" 02001_ D-53 Grenadier knocked back. 02004_ The unstable cave ceiling collapses. 02005_ 4H-P73(h) destroyed. 02013_ EM Pulse Gun destroyed. 02015_ Ion Engine destroyed. 02017_ D-53 Grenadier destroyed. 02017_ Acquired 18 matter. 02019_ S-10 Pest system terminally corrupted. 02019_ Mining Laser destroyed. 02023_ as-56667 destroyed. 02025_ The unstable cave ceiling collapses. 02025_ as-22797 destroyed. 02025_ as-91991 destroyed. 02026_ D-53 Grenadier knocked back. 02027_ as-94665 destroyed. 02027_ D-53 Grenadier destroyed. 02027_ as-10261 destroyed. 02030_ R-06 Scavenger destroyed. [Achievement: Tester] Map ----- +----------------------------------------------------+ | ?????????????????????????????????????????????????? | | ?????????????????????????????????????????????????? | | ?????????????????????????????????????????????????? | | ?????????????????????????????????????????????????? | | ???????????????? ???????????????????????????????? | | ???????????????? ???????????????????????????????? | | ???????????????? ???????????????????????????????? | | ???????? ??????? ???????????????????????????????? | | ?????? ???????# ???????????????????????????????? | | ?????? ? ????# ##?######??????????????????????? | | ????? ??## # =*$%??????????????????????? | | ????? #??# % [ %a! #??????????????????????? | | ????# #??# aa ??????????????????????? | | ????# ### # % ##?????????????????????? | | ????# # % ??????????????????????? | | ?????# ???????????????????????? | | ??????# a aa##??????????????????????? | | ???#### !%r####???????????????????? | | ???# a # ##??????????????????? | | ???# # #??????????????????? | | ???# #?## ###?????????????????? | | ???# #??## #?????????????????? | | #### #???##### % #?????????????????? | | #???????# #?????????????????? | | # ## #??####### #?????????????????? | | # ## #### ######### @ ##?????????????????? | | # ## < #??????## % ###??????????????????? | | # ## #?????## ##?????????????????? | | # ## ##????## #?????????????????? | | # ## ##?????# #?????????????????? | | # ## ##?????## ## ##????????????????? | | # ## ##?????## #### ##???????????????? | | # ### ####?### ##?## ##??????????????? | | # #?####### ### #??## < #??????????????? | | # #???????# #???# ##?????????????? | | # ######??# ## ##???# ##????????????? | | # ## ##?## ###;###????## #????????????? | | # ##?# ##?##????????## ##????????????? | | """ #?# ##?????????????#####?????????????? | | """ #?# #????????????????????????????????? | | """ #?## ##????????????????????????????????? | | ## ##??####?????????????????????????????????? | | ### ####????????????????????????????????????????? | | ??####???????????????????????????????????????????? | | ?????????????????????????????????????????????????? | | | | | | | | | | | +----------------------------------------------------+ Best States ------------- Heat Dissipation 25 Energy Generation 10 Energy Capacity 250 Matter Stores 300 Matter Capacity 300 Sight Range 16 Terrain Scan Range 14 Terrain Scan Density 10 Evasion (%) 55 Recoil Reduction 2 Item Schematics ----------------- Cargo Storage Unit | -10/Materials | Hacked Com. Wheel | -10/Materials | Hacked Robot Schematics ------------------ None Fabricated ------------ Nothing Alien Tech Used ----------------- None Achievements -------------- Tester Challenges ------------ None Game ------ Seed GrenadeTractorScanner Manual? 0 Play Time 00:31:14 Cumulative 98.6 hours Start 2023.03.22 @ 18:39:10 End 2023.03.22 @ 19:12:02 Sessions 1 Manual Loads 0 Difficulty Rogue Special Mode None Game No. 40 Rogue 40 Adventurer 0 Explorer 0 Win Type - Total 0 Types 0/0/0/0/0/0/0/0/0 Lore% 42 Gallery% 50 Achievement% 39 Wizard Run 0 Options --------- ASCII 0 Keyboard 0 Movement Mouse Keybinds 1 Fullscreen 2 Font 18/X11 Map View 76x50 Tactical HUD 1 Map Filters NONE Filters NONE Steam 1 RUN: 5238e18a-c98c-41e3-b8d2-12d3ab975df9